Workbook

Sheet Registrace zákazníka
A3: zákazník | D3: název- IČ
C5: Firma | D5: zde vyplňte
C6: Ulice | D6: zde vyplňte
C7: Město | D7: zde vyplňte
C8: DIČ | D8: zde vyplňte
C9: telefon | D9: zde vyplňte
C10: smlouva | D10: zde vyplňte
C11: mail | D11: zde vyplňte
C12: sleva | D12: 33%
D16: zastoupení Valsir v ČR - Genova Bohemia spol. s.r.o.
D17: Vídeňská 573, Vestec PSČ 252 42
D18: IČ 26188651
D19: DIČ CZ 26188651
D20: tel 2 4491 1288
D21: tel 2 4491 1283
D22: info@genovabohemia.cz
D23: objednavky@genovabohemia.cz
D24: Otevřeno- Po až Pá 7-18 hod sobotní prodej 8-12 hod

Sheet Ceník 6.2014
A1: HT odpadní systémy z polypropylenu | O1: Nastavená sleva | Q1: ='Registrace zákazníka'!D12 -> 33%
A2: HTEM
A3: HT trubky s hrdlem
A4: Číslo | B4: Obrázek výrobku | C4: COD. | D4: CL | E4: D | F4: DN | G4: L (mm) | O4: HxLxP | P4: Brutto | Q4: Netto | R4: obj. ks | S4: Netto celkem
A5: 1 | B5: HT trubky s hrdlem | C5: VS0500001 | D5: PP01 | E5: 32 | F5: 30 | G5: 150 | L5: 30 | M5: 240 | N5: 1440 | O5: 970x800x1200 | P5: 22 | Q5: =Tabulka2[[#This Row],[Sloupec14]]*(100-$Q$1*100)/100 -> 14.74 | S5: =Tabulka2[[#This Row],[Sloupec15]]*R5 -> 0.00 Kč
A6: =A5+1 -> 2 | B6: HT trubky s hrdlem | C6: VS0500003 | D6: PP01 | E6: 32 | F6: 30 | G6: 250 | L6: 30 | M6: 240 | N6: 1440 | O6: 970x800x1200 | P6: 25 | Q6: =Tabulka2[[#This Row],[Sloupec14]]*(100-$Q$1*100)/100 -> 16.75 | S6: =Tabulka2[[#This Row],[Sloupec15]]*R6 -> 0.00 Kč
A7: =A6+1 -> 3 | B7: HT trubky s hrdlem | C7: VS0500005 | D7: PP01 | E7: 32 | F7: 30 | G7: 500 | L7: 30 | M7: 180 | N7: 900 | O7: 905x800x1200 | P7: 37 | Q7: =Tabulka2[[#This Row],[Sloupec14]]*(100-$Q$1*100)/100 -> 24.79 | S7: =Tabulka2[[#This Row],[Sloupec15]]*R7 -> 0.00 Kč
A8: 4 | B8: HT trubky s hrdlem | C8: VS0500007 | D8: PP01 | E8: 32 | F8: 30 | G8: 750 | L8: 30 | M8: - | N8: - | O8: - | P8: 51 | Q8: =Tabulka2[[#This Row],[Sloupec14]]*(100-$Q$1*100)/100 -> 34.17 | S8: =Tabulka2[[#This Row],[Sloupec15]]*R8 -> 0.00 Kč
A9: 5 | B9: HT trubky s hrdlem | C9: VS0500009 | D9: PP01 | E9: 32 | F9: 30 | G9: 1000 | L9: 30 | M9: - | N9: - | O9: - | P9: 59 | Q9: =Tabulka2[[#This Row],[Sloupec14]]*(100-$Q$1*100)/100 -> 39.53 | S9: =Tabulka2[[#This Row],[Sloupec15]]*R9 -> 0.00 Kč
A10: 6 | B10: HT trubky s hrdlem | C10: VS0500011 | D10: PP01 | E10: 32 | F10: 30 | G10: 1500 | L10: 30 | M10: - | N10: - | O10: - | P10: 81 | Q10: =Tabulka2[[#This Row],[Sloupec14]]*(100-$Q$1*100)/100 -> 54.27 | S10: =Tabulka2[[#This Row],[Sloupec15]]*R10 -> 0.00 Kč
A11: 7 | B11: HT trubky s hrdlem | C11: VS0500013 | D11: PP01 | E11: 32 | F11: 30 | G11: 2000 | L11: 30 | M11: - | N11: - | O11: - | P11: 123 | Q11: =Tabulka2[[#This Row],[Sloupec14]]*(100-$Q$1*100)/100 -> 82.41 | S11: =Tabulka2[[#This Row],[Sloupec15]]*R11 -> 0.00 Kč
A12: 8 | B12: HT trubky s hrdlem | C12: VS0500015 | D12: PP01 | E12: 32 | F12: 30 | G12: 3000 | L12: 30 | M12: - | N12: - | O12: - | P12: 175 | Q12: =Tabulka2[[#This Row],[Sloupec14]]*(100-$Q$1*100)/100 -> 117.25 | S12: =Tabulka2[[#This Row],[Sloupec15]]*R12 -> 0.00 Kč
A13: 9 | B13: HT trubky s hrdlem | C13: VS0500021 | D13: PP01 | E13: 40 | F13: 40 | G13: 150 | L13: 30 | M13: 240 | N13: 1200 | O13: 1030x800x1200 | P13: 22 | Q13: =Tabulka2[[#This Row],[Sloupec14]]*(100-$Q$1*100)/100 -> 14.74 | S13: =Tabulka2[[#This Row],[Sloupec15]]*R13 -> 0.00 Kč
A14: 10 | B14: HT trubky s hrdlem | C14: VS0500023 | D14: PP01 | E14: 40 | F14: 40 | G14: 250 | L14: 30 | M14: 240 | N14: 960 | O14: 1010x800x1200 | P14: 25 | Q14: =Tabulka2[[#This Row],[Sloupec14]]*(100-$Q$1*100)/100 -> 16.75 | S14: =Tabulka2[[#This Row],[Sloupec15]]*R14 -> 0.00 Kč
A15: 11 | B15: HT trubky s hrdlem | C15: VS0500025 | D15: PP01 | E15: 40 | F15: 40 | G15: 500 | L15: 50 | M15: 200 | N15: 600 | O15: 970x800x1200 | P15: 31 | Q15: =Tabulka2[[#This Row],[Sloupec14]]*(100-$Q$1*100)/100 -> 20.77 | S15: =Tabulka2[[#This Row],[Sloupec15]]*R15 -> 0.00 Kč
A16: 12 | B16: HT trubky s hrdlem | C16: VS0500027 | D16: PP01 | E16: 40 | F16: 40 | G16: 750 | L16: 30 | M16: 120 | N16: 360 | O16: 880x800x1200 | P16: 42 | Q16: =Tabulka2[[#This Row],[Sloupec14]]*(100-$Q$1*100)/100 -> 28.14 | S16: =Tabulka2[[#This Row],[Sloupec15]]*R16 -> 0.00 Kč
A17: 13 | B17: HT trubky s hrdlem | C17: VS0500029 | D17: PP01 | E17: 40 | F17: 40 | G17: 1000 | L17: 30 | M17: - | N17: - | O17: - | P17: 47 | Q17: =Tabulka2[[#This Row],[Sloupec14]]*(100-$Q$1*100)/100 -> 31.49 | S17: =Tabulka2[[#This Row],[Sloupec15]]*R17 -> 0.00 Kč
A18: 14 | B18: HT trubky s hrdlem | C18: VS0500031 | D18: PP01 | E18: 40 | F18: 40 | G18: 1500 | L18: 30 | M18: - | N18: - | O18: - | P18: 81 | Q18: =Tabulka2[[#This Row],[Sloupec14]]*(100-$Q$1*100)/100 -> 54.27 | S18: =Tabulka2[[#This Row],[Sloupec15]]*R18 -> 0.00 Kč
A19: 15 | B19: HT trubky s hrdlem | C19: VS0500033 | D19: PP01 | E19: 40 | F19: 40 | G19: 2000 | L19: 30 | M19: - | N19: - | O19: - | P19: 93 | Q19: =Tabulka2[[#This Row],[Sloupec14]]*(100-$Q$1*100)/100 -> 62.31 | S19: =Tabulka2[[#This Row],[Sloupec15]]*R19 -> 0.00 Kč
A20: 16 | B20: HT trubky s hrdlem | C20: VS0500035 | D20: PP01 | E20: 40 | F20: 40 | G20: 3000 | L20: 30 | M20: - | N20: - | O20: - | P20: 162 | Q20: =Tabulka2[[#This Row],[Sloupec14]]*(100-$Q$1*100)/100 -> 108.54 | S20: =Tabulka2[[#This Row],[Sloupec15]]*R20 -> 0.00 Kč
A21: 17 | B21: HT trubky s hrdlem | C21: VS0500041 | D21: PP01 | E21: 50 | F21: 50 | G21: 150 | L21: 30 | M21: 240 | N21: 960 | O21: 1010x800x1200 | P21: 24 | Q21: =Tabulka2[[#This Row],[Sloupec14]]*(100-$Q$1*100)/100 -> 16.08 | S21: =Tabulka2[[#This Row],[Sloupec15]]*R21 -> 0.00 Kč
A22: 18 | B22: HT trubky s hrdlem | C22: VS0500043 | D22: PP01 | E22: 50 | F22: 50 | G22: 250 | L22: 30 | M22: 240 | N22: 720 | O22: 1015x800x1200 | P22: 29 | Q22: =Tabulka2[[#This Row],[Sloupec14]]*(100-$Q$1*100)/100 -> 19.43 | S22: =Tabulka2[[#This Row],[Sloupec15]]*R22 -> 0.00 Kč
A23: 19 | B23: HT trubky s hrdlem | C23: VS0500045 | D23: PP01 | E23: 50 | F23: 50 | G23: 500 | L23: 35 | M23: 140 | N23: 420 | O23: 970x800x1200 | P23: 38 | Q23: =Tabulka2[[#This Row],[Sloupec14]]*(100-$Q$1*100)/100 -> 25.46 | S23: =Tabulka2[[#This Row],[Sloupec15]]*R23 -> 0.00 Kč
A24: 20 | B24: HT trubky s hrdlem | C24: VS0500047 | D24: PP01 | E24: 50 | F24: 50 | G24: 750 | L24: 30 | M24: - | N24: - | O24: - | P24: 57 | Q24: =Tabulka2[[#This Row],[Sloupec14]]*(100-$Q$1*100)/100 -> 38.19 | S24: =Tabulka2[[#This Row],[Sloupec15]]*R24 -> 0.00 Kč
A25: 21 | B25: HT trubky s hrdlem | C25: VS050004702 | D25: PP01 | E25: 50 | F25: 50 | G25: 750 | L25: 260 | M25: - | N25: - | O25: - | P25: 57 | Q25: =Tabulka2[[#This Row],[Sloupec14]]*(100-$Q$1*100)/100 -> 38.19 | S25: =Tabulka2[[#This Row],[Sloupec15]]*R25 -> 0.00 Kč
A26: 22 | B26: HT trubky s hrdlem | C26: VS0500049 | D26: PP01 | E26: 50 | F26: 50 | G26: 1000 | L26: 30 | M26: - | N26: - | O26: - | P26: 61 | Q26: =Tabulka2[[#This Row],[Sloupec14]]*(100-$Q$1*100)/100 -> 40.87 | S26: =Tabulka2[[#This Row],[Sloupec15]]*R26 -> 0.00 Kč
A27: 23 | B27: HT trubky s hrdlem | C27: VS050004902 | D27: PP01 | E27: 50 | F27: 50 | G27: 1000 | L27: 260 | M27: - | N27: - | O27: - | P27: 61 | Q27: =Tabulka2[[#This Row],[Sloupec14]]*(100-$Q$1*100)/100 -> 40.87 | S27: =Tabulka2[[#This Row],[Sloupec15]]*R27 -> 0.00 Kč
A28: 24 | B28: HT trubky s hrdlem | C28: VS0500051 | D28: PP01 | E28: 50 | F28: 50 | G28: 1500 | L28: 30 | M28: - | N28: - | O28: - | P28: 99 | Q28: =Tabulka2[[#This Row],[Sloupec14]]*(100-$Q$1*100)/100 -> 66.33 | S28: =Tabulka2[[#This Row],[Sloupec15]]*R28 -> 0.00 Kč
A29: 25 | B29: HT trubky s hrdlem | C29: VS050005102 | D29: PP01 | E29: 50 | F29: 50 | G29: 1500 | L29: 260 | M29: - | N29: - | O29: - | P29: 99 | Q29: =Tabulka2[[#This Row],[Sloupec14]]*(100-$Q$1*100)/100 -> 66.33 | S29: =Tabulka2[[#This Row],[Sloupec15]]*R29 -> 0.00 Kč
A30: 26 | B30: HT trubky s hrdlem | C30: VS0500053 | D30: PP01 | E30: 50 | F30: 50 | G30: 2000 | L30: 30 | M30: - | N30: - | O30: - | P30: 119 | Q30: =Tabulka2[[#This Row],[Sloupec14]]*(100-$Q$1*100)/100 -> 79.73 | S30: =Tabulka2[[#This Row],[Sloupec15]]*R30 -> 0.00 Kč
A31: 27 | B31: HT trubky s hrdlem | C31: VS050005302 | D31: PP01 | E31: 50 | F31: 50 | G31: 2000 | L31: 260 | M31: - | N31: - | O31: - | P31: 119 | Q31: =Tabulka2[[#This Row],[Sloupec14]]*(100-$Q$1*100)/100 -> 79.73 | S31: =Tabulka2[[#This Row],[Sloupec15]]*R31 -> 0.00 Kč
A32: 28 | B32: HT trubky s hrdlem | C32: VS0500055 | D32: PP01 | E32: 50 | F32: 50 | G32: 3000 | L32: 30 | M32: - | N32: - | O32: - | P32: 230 | Q32: =Tabulka2[[#This Row],[Sloupec14]]*(100-$Q$1*100)/100 -> 154.1 | S32: =Tabulka2[[#This Row],[Sloupec15]]*R32 -> 0.00 Kč
A33: 29 | B33: HT trubky s hrdlem | C33: VS0500061 | D33: PP01 | E33: 75 | F33: 70 | G33: 150 | L33: 30 | M33: 240 | N33: 480 | O33: 1050x800x1200 | P33: 43 | Q33: =Tabulka2[[#This Row],[Sloupec14]]*(100-$Q$1*100)/100 -> 28.81 | S33: =Tabulka2[[#This Row],[Sloupec15]]*R33 -> 0.00 Kč
A34: 30 | B34: HT trubky s hrdlem | C34: VS0500063 | D34: PP01 | E34: 75 | F34: 70 | G34: 250 | L34: 20 | M34: 160 | N34: 320 | O34: 1050x800x1200 | P34: 48 | Q34: =Tabulka2[[#This Row],[Sloupec14]]*(100-$Q$1*100)/100 -> 32.16 | S34: =Tabulka2[[#This Row],[Sloupec15]]*R34 -> 0.00 Kč
A35: 31 | B35: HT trubky s hrdlem | C35: VS0500065 | D35: PP01 | E35: 75 | F35: 70 | G35: 500 | L35: 20 | M35: 80 | N35: 240 | O35: 1075x800x1200 | P35: 68 | Q35: =Tabulka2[[#This Row],[Sloupec14]]*(100-$Q$1*100)/100 -> 45.56 | S35: =Tabulka2[[#This Row],[Sloupec15]]*R35 -> 0.00 Kč
A36: 32 | B36: HT trubky s hrdlem | C36: VS0500067 | D36: PP01 | E36: 75 | F36: 70 | G36: 750 | L36: 25 | M36: - | N36: - | O36: - | P36: 84 | Q36: =Tabulka2[[#This Row],[Sloupec14]]*(100-$Q$1*100)/100 -> 56.28 | S36: =Tabulka2[[#This Row],[Sloupec15]]*R36 -> 0.00 Kč
A37: 33 | B37: HT trubky s hrdlem | C37: VS050006702 | D37: PP01 | E37: 75 | F37: 70 | G37: 750 | L37: 120 | M37: - | N37: - | O37: - | P37: 84 | Q37: =Tabulka2[[#This Row],[Sloupec14]]*(100-$Q$1*100)/100 -> 56.28 | S37: =Tabulka2[[#This Row],[Sloupec15]]*R37 -> 0.00 Kč
A38: 34 | B38: HT trubky s hrdlem | C38: VS0500069 | D38: PP01 | E38: 75 | F38: 70 | G38: 1000 | L38: 25 | M38: - | N38: - | O38: - | P38: 99 | Q38: =Tabulka2[[#This Row],[Sloupec14]]*(100-$Q$1*100)/100 -> 66.33 | S38: =Tabulka2[[#This Row],[Sloupec15]]*R38 -> 0.00 Kč
A39: 35 | B39: HT trubky s hrdlem | C39: VS050006902 | D39: PP01 | E39: 75 | F39: 70 | G39: 1000 | L39: 120 | M39: - | N39: - | O39: - | P39: 99 | Q39: =Tabulka2[[#This Row],[Sloupec14]]*(100-$Q$1*100)/100 -> 66.33 | S39: =Tabulka2[[#This Row],[Sloupec15]]*R39 -> 0.00 Kč
A40: 36 | B40: HT trubky s hrdlem | C40: VS0500071 | D40: PP01 | E40: 75 | F40: 70 | G40: 1500 | L40: 25 | M40: - | N40: - | O40: - | P40: 146 | Q40: =Tabulka2[[#This Row],[Sloupec14]]*(100-$Q$1*100)/100 -> 97.82 | S40: =Tabulka2[[#This Row],[Sloupec15]]*R40 -> 0.00 Kč
A41: 37 | B41: HT trubky s hrdlem | C41: VS050007102 | D41: PP01 | E41: 75 | F41: 70 | G41: 1500 | L41: 120 | M41: - | N41: - | O41: - | P41: 146 | Q41: =Tabulka2[[#This Row],[Sloupec14]]*(100-$Q$1*100)/100 -> 97.82 | S41: =Tabulka2[[#This Row],[Sloupec15]]*R41 -> 0.00 Kč
A42: 38 | B42: HT trubky s hrdlem | C42: VS0500073 | D42: PP01 | E42: 75 | F42: 70 | G42: 2000 | L42: 25 | M42: - | N42: - | O42: - | P42: 176 | Q42: =Tabulka2[[#This Row],[Sloupec14]]*(100-$Q$1*100)/100 -> 117.92 | S42: =Tabulka2[[#This Row],[Sloupec15]]*R42 -> 0.00 Kč
A43: 39 | B43: HT trubky s hrdlem | C43: VS050007302 | D43: PP01 | E43: 75 | F43: 70 | G43: 2000 | L43: 120 | M43: - | N43: - | O43: - | P43: 176 | Q43: =Tabulka2[[#This Row],[Sloupec14]]*(100-$Q$1*100)/100 -> 117.92 | S43: =Tabulka2[[#This Row],[Sloupec15]]*R43 -> 0.00 Kč
A44: 40 | B44: HT trubky s hrdlem | C44: VS0500075 | D44: PP01 | E44: 75 | F44: 70 | G44: 3000 | L44: 25 | M44: - | N44: - | O44: - | P44: 294 | Q44: =Tabulka2[[#This Row],[Sloupec14]]*(100-$Q$1*100)/100 -> 196.98 | S44: =Tabulka2[[#This Row],[Sloupec15]]*R44 -> 0.00 Kč
A45: 41 | B45: HT trubky s hrdlem | C45: VS0599001 | D45: PP01 | E45: 90 | F45: 90 | G45: 150 | L45: 24 | M45: 96 | N45: 384 | O45: 1050x800x1200 | P45: 57 | Q45: =Tabulka2[[#This Row],[Sloupec14]]*(100-$Q$1*100)/100 -> 38.19 | S45: =Tabulka2[[#This Row],[Sloupec15]]*R45 -> 0.00 Kč
A46: 42 | B46: HT trubky s hrdlem | C46: VS0599003 | D46: PP01 | E46: 90 | F46: 90 | G46: 250 | L46: 24 | M46: 96 | N46: 288 | O46: 1165x800x1200 | P46: 60 | Q46: =Tabulka2[[#This Row],[Sloupec14]]*(100-$Q$1*100)/100 -> 40.2 | S46: =Tabulka2[[#This Row],[Sloupec15]]*R46 -> 0.00 Kč
A47: 43 | B47: HT trubky s hrdlem | C47: VS0599005 | D47: PP01 | E47: 90 | F47: 90 | G47: 500 | L47: 24 | M47: 96 | N47: 192 | O47: 1300x800x1200 | P47: 87 | Q47: =Tabulka2[[#This Row],[Sloupec14]]*(100-$Q$1*100)/100 -> 58.29 | S47: =Tabulka2[[#This Row],[Sloupec15]]*R47 -> 0.00 Kč
A48: 44 | B48: HT trubky s hrdlem | C48: VS0599009 | D48: PP01 | E48: 90 | F48: 90 | G48: 1000 | L48: 20 | M48: - | N48: - | O48: - | P48: 134 | Q48: =Tabulka2[[#This Row],[Sloupec14]]*(100-$Q$1*100)/100 -> 89.78 | S48: =Tabulka2[[#This Row],[Sloupec15]]*R48 -> 0.00 Kč
A49: 45 | B49: HT trubky s hrdlem | C49: VS059900902 | D49: PP01 | E49: 90 | F49: 90 | G49: 1000 | L49: 96 | M49: - | N49: - | O49: - | P49: 134 | Q49: =Tabulka2[[#This Row],[Sloupec14]]*(100-$Q$1*100)/100 -> 89.78 | S49: =Tabulka2[[#This Row],[Sloupec15]]*R49 -> 0.00 Kč
A50: 46 | B50: HT trubky s hrdlem | C50: VS0599011 | D50: PP01 | E50: 90 | F50: 90 | G50: 1500 | L50: 20 | M50: - | N50: - | O50: - | P50: 236 | Q50: =Tabulka2[[#This Row],[Sloupec14]]*(100-$Q$1*100)/100 -> 158.12 | S50: =Tabulka2[[#This Row],[Sloupec15]]*R50 -> 0.00 Kč
A51: 47 | B51: HT trubky s hrdlem | C51: VS0599013 | D51: PP01 | E51: 90 | F51: 90 | G51: 2000 | L51: 20 | M51: - | N51: - | O51: - | P51: 262 | Q51: =Tabulka2[[#This Row],[Sloupec14]]*(100-$Q$1*100)/100 -> 175.54 | S51: =Tabulka2[[#This Row],[Sloupec15]]*R51 -> 0.00 Kč
A52: 48 | B52: HT trubky s hrdlem | C52: VS059901302 | D52: PP01 | E52: 90 | F52: 90 | G52: 2000 | L52: 96 | M52: - | N52: - | O52: - | P52: 262 | Q52: =Tabulka2[[#This Row],[Sloupec14]]*(100-$Q$1*100)/100 -> 175.54 | S52: =Tabulka2[[#This Row],[Sloupec15]]*R52 -> 0.00 Kč
A53: 49 | B53: HT trubky s hrdlem | C53: VS0599015 | D53: PP01 | E53: 90 | F53: 90 | G53: 3000 | L53: 20 | M53: - | N53: - | O53: - | P53: 407 | Q53: =Tabulka2[[#This Row],[Sloupec14]]*(100-$Q$1*100)/100 -> 272.69 | S53: =Tabulka2[[#This Row],[Sloupec15]]*R53 -> 0.00 Kč
A54: 50 | B54: HT trubky s hrdlem | C54: VS0500081 | D54: PP01 | E54: 110 | F54: 100 | G54: 150 | L54: 15 | M54: 60 | N54: 240 | O54: 1050x800x1200 | P54: 65 | Q54: =Tabulka2[[#This Row],[Sloupec14]]*(100-$Q$1*100)/100 -> 43.55 | S54: =Tabulka2[[#This Row],[Sloupec15]]*R54 -> 0.00 Kč
A55: 51 | B55: HT trubky s hrdlem | C55: VS0500083 | D55: PP01 | E55: 110 | F55: 100 | G55: 250 | L55: 15 | M55: 60 | N55: 180 | O55: 1165x800x1200 | P55: 73 | Q55: =Tabulka2[[#This Row],[Sloupec14]]*(100-$Q$1*100)/100 -> 48.91 | S55: =Tabulka2[[#This Row],[Sloupec15]]*R55 -> 0.00 Kč
A56: 52 | B56: HT trubky s hrdlem | C56: VS0500085 | D56: PP01 | E56: 110 | F56: 100 | G56: 500 | L56: 15 | M56: 60 | N56: 120 | O56: 1300x800x1200 | P56: 119 | Q56: =Tabulka2[[#This Row],[Sloupec14]]*(100-$Q$1*100)/100 -> 79.73 | S56: =Tabulka2[[#This Row],[Sloupec15]]*R56 -> 0.00 Kč
A57: 53 | B57: HT trubky s hrdlem | C57: VS0500087 | D57: PP01 | E57: 110 | F57: 100 | G57: 750 | L57: 15 | M57: - | N57: - | O57: - | P57: 151 | Q57: =Tabulka2[[#This Row],[Sloupec14]]*(100-$Q$1*100)/100 -> 101.17 | S57: =Tabulka2[[#This Row],[Sloupec15]]*R57 -> 0.00 Kč
A58: 54 | B58: HT trubky s hrdlem | C58: VS050008702 | D58: PP01 | E58: 110 | F58: 100 | G58: 750 | L58: 80 | M58: - | N58: - | O58: - | P58: 151 | Q58: =Tabulka2[[#This Row],[Sloupec14]]*(100-$Q$1*100)/100 -> 101.17 | S58: =Tabulka2[[#This Row],[Sloupec15]]*R58 -> 0.00 Kč
A59: 55 | B59: HT trubky s hrdlem | C59: VS0500089 | D59: PP01 | E59: 110 | F59: 100 | G59: 1000 | L59: 15 | M59: - | N59: - | O59: - | P59: 184 | Q59: =Tabulka2[[#This Row],[Sloupec14]]*(100-$Q$1*100)/100 -> 123.28 | S59: =Tabulka2[[#This Row],[Sloupec15]]*R59 -> 0.00 Kč
A60: 56 | B60: HT trubky s hrdlem | C60: VS050008902 | D60: PP01 | E60: 110 | F60: 100 | G60: 1000 | L60: 80 | M60: - | N60: - | O60: - | P60: 184 | Q60: =Tabulka2[[#This Row],[Sloupec14]]*(100-$Q$1*100)/100 -> 123.28 | S60: =Tabulka2[[#This Row],[Sloupec15]]*R60 -> 0.00 Kč
A61: 57 | B61: HT trubky s hrdlem | C61: VS0500091 | D61: PP01 | E61: 110 | F61: 100 | G61: 1500 | L61: 15 | M61: - | N61: - | O61: - | P61: 284 | Q61: =Tabulka2[[#This Row],[Sloupec14]]*(100-$Q$1*100)/100 -> 190.28 | S61: =Tabulka2[[#This Row],[Sloupec15]]*R61 -> 0.00 Kč
A62: 58 | B62: HT trubky s hrdlem | C62: VS050009102 | D62: PP01 | E62: 110 | F62: 100 | G62: 1500 | L62: 80 | M62: - | N62: - | O62: - | P62: 284 | Q62: =Tabulka2[[#This Row],[Sloupec14]]*(100-$Q$1*100)/100 -> 190.28 | S62: =Tabulka2[[#This Row],[Sloupec15]]*R62 -> 0.00 Kč
A63: 59 | B63: HT trubky s hrdlem | C63: VS0500093 | D63: PP01 | E63: 110 | F63: 100 | G63: 2000 | L63: 15 | M63: - | N63: - | O63: - | P63: 340 | Q63: =Tabulka2[[#This Row],[Sloupec14]]*(100-$Q$1*100)/100 -> 227.8 | S63: =Tabulka2[[#This Row],[Sloupec15]]*R63 -> 0.00 Kč
A64: 60 | B64: HT trubky s hrdlem | C64: VS050009302 | D64: PP01 | E64: 110 | F64: 100 | G64: 2000 | L64: 80 | M64: - | N64: - | O64: - | P64: 340 | Q64: =Tabulka2[[#This Row],[Sloupec14]]*(100-$Q$1*100)/100 -> 227.8 | S64: =Tabulka2[[#This Row],[Sloupec15]]*R64 -> 0.00 Kč
A65: 61 | B65: HT trubky s hrdlem | C65: VS0500095 | D65: PP01 | E65: 110 | F65: 100 | G65: 3000 | L65: 15 | M65: - | N65: - | O65: - | P65: 551 | Q65: =Tabulka2[[#This Row],[Sloupec14]]*(100-$Q$1*100)/100 -> 369.17 | S65: =Tabulka2[[#This Row],[Sloupec15]]*R65 -> 0.00 Kč
A66: 62 | B66: HT trubky s hrdlem | C66: VS0500101 | D66: PP01 | E66: 125 | F66: 125 | G66: 150 | L66: 10 | M66: 80 | N66: 160 | O66: 1050x800x1200 | P66: 93 | Q66: =Tabulka2[[#This Row],[Sloupec14]]*(100-$Q$1*100)/100 -> 62.31 | S66: =Tabulka2[[#This Row],[Sloupec15]]*R66 -> 0.00 Kč
A67: 63 | B67: HT trubky s hrdlem | C67: VS0500103 | D67: PP01 | E67: 125 | F67: 125 | G67: 250 | L67: 10 | M67: 40 | N67: 120 | O67: 1165x800x1200 | P67: 116 | Q67: =Tabulka2[[#This Row],[Sloupec14]]*(100-$Q$1*100)/100 -> 77.72 | S67: =Tabulka2[[#This Row],[Sloupec15]]*R67 -> 0.00 Kč
A68: 64 | B68: HT trubky s hrdlem | C68: VS0500105 | D68: PP01 | E68: 125 | F68: 125 | G68: 500 | L68: 6 | M68: 48 | N68: 96 | O68: 1340x800x1200 | P68: 163 | Q68: =Tabulka2[[#This Row],[Sloupec14]]*(100-$Q$1*100)/100 -> 109.21 | S68: =Tabulka2[[#This Row],[Sloupec15]]*R68 -> 0.00 Kč
A69: 65 | B69: HT trubky s hrdlem | C69: VS0500107 | D69: PP01 | E69: 125 | F69: 125 | G69: 750 | L69: 8 | M69: - | N69: - | O69: - | P69: 203 | Q69: =Tabulka2[[#This Row],[Sloupec14]]*(100-$Q$1*100)/100 -> 136.01 | S69: =Tabulka2[[#This Row],[Sloupec15]]*R69 -> 0.00 Kč
A70: 66 | B70: HT trubky s hrdlem | C70: VS0500109 | D70: PP01 | E70: 125 | F70: 125 | G70: 1000 | L70: 10 | M70: - | N70: - | O70: - | P70: 268 | Q70: =Tabulka2[[#This Row],[Sloupec14]]*(100-$Q$1*100)/100 -> 179.56 | S70: =Tabulka2[[#This Row],[Sloupec15]]*R70 -> 0.00 Kč
A71: =A70+1 -> 67 | B71: HT trubky s hrdlem | C71: VS0500111 | D71: PP01 | E71: 125 | F71: 125 | G71: 1500 | L71: 10 | M71: - | N71: - | O71: - | P71: 321 | Q71: =Tabulka2[[#This Row],[Sloupec14]]*(100-$Q$1*100)/100 -> 215.07 | S71: =Tabulka2[[#This Row],[Sloupec15]]*R71 -> 0.00 Kč
A72: 68 | B72: HT trubky s hrdlem | C72: VS0500113 | D72: PP01 | E72: 125 | F72: 125 | G72: 2000 | L72: 10 | M72: - | N72: - | O72: - | P72: 412 | Q72: =Tabulka2[[#This Row],[Sloupec14]]*(100-$Q$1*100)/100 -> 276.04 | S72: =Tabulka2[[#This Row],[Sloupec15]]*R72 -> 0.00 Kč
A73: 69 | B73: HT trubky s hrdlem | C73: VS0500115 | D73: PP01 | E73: 125 | F73: 125 | G73: 3000 | L73: 10 | M73: - | N73: - | O73: - | P73: 704 | Q73: =Tabulka2[[#This Row],[Sloupec14]]*(100-$Q$1*100)/100 -> 471.68 | S73: =Tabulka2[[#This Row],[Sloupec15]]*R73 -> 0.00 Kč
A74: 70 | B74: HT trubky s hrdlem | C74: VS0500121 | D74: PP01 | E74: 160 | F74: 150 | G74: 150 | L74: 10 | M74: - | N74: - | O74: - | P74: 181 | Q74: =Tabulka2[[#This Row],[Sloupec14]]*(100-$Q$1*100)/100 -> 121.27 | S74: =Tabulka2[[#This Row],[Sloupec15]]*R74 -> 0.00 Kč
A75: 71 | B75: HT trubky s hrdlem | C75: VS0500123 | D75: PP01 | E75: 160 | F75: 150 | G75: 250 | L75: 10 | M75: - | N75: - | O75: - | P75: 218 | Q75: =Tabulka2[[#This Row],[Sloupec14]]*(100-$Q$1*100)/100 -> 146.06 | S75: =Tabulka2[[#This Row],[Sloupec15]]*R75 -> 0.00 Kč
A76: 72 | B76: HT trubky s hrdlem | C76: VS0500125 | D76: PP01 | E76: 160 | F76: 150 | G76: 500 | L76: 10 | M76: - | N76: - | O76: - | P76: 330 | Q76: =Tabulka2[[#This Row],[Sloupec14]]*(100-$Q$1*100)/100 -> 221.1 | S76: =Tabulka2[[#This Row],[Sloupec15]]*R76 -> 0.00 Kč
A77: 73 | B77: HT trubky s hrdlem | C77: VS0500129 | D77: PP01 | E77: 160 | F77: 150 | G77: 1000 | L77: 10 | M77: - | N77: - | O77: - | P77: 471 | Q77: =Tabulka2[[#This Row],[Sloupec14]]*(100-$Q$1*100)/100 -> 315.57 | S77: =Tabulka2[[#This Row],[Sloupec15]]*R77 -> 0.00 Kč
A78: 74 | B78: HT trubky s hrdlem | C78: VS0500131 | D78: PP01 | E78: 160 | F78: 150 | G78: 1500 | L78: 10 | M78: - | N78: - | O78: - | P78: 596 | Q78: =Tabulka2[[#This Row],[Sloupec14]]*(100-$Q$1*100)/100 -> 399.32 | S78: =Tabulka2[[#This Row],[Sloupec15]]*R78 -> 0.00 Kč
A79: 75 | B79: HT trubky s hrdlem | C79: VS0500133 | D79: PP01 | E79: 160 | F79: 150 | G79: 2000 | L79: 10 | M79: - | N79: - | O79: - | P79: 757 | Q79: =Tabulka2[[#This Row],[Sloupec14]]*(100-$Q$1*100)/100 -> 507.19 | S79: =Tabulka2[[#This Row],[Sloupec15]]*R79 -> 0.00 Kč
A80: 76 | B80: HT trubky s hrdlem | C80: VS0500135 | D80: PP01 | E80: 160 | F80: 150 | G80: 3000 | L80: 10 | M80: - | N80: - | O80: - | P80: 1075 | Q80: =Tabulka2[[#This Row],[Sloupec14]]*(100-$Q$1*100)/100 -> 720.25 | S80: =Tabulka2[[#This Row],[Sloupec15]]*R80 -> 0.00 Kč
A81: HTGL
A82: HT trubky bez hrdla
A83: Číslo | B83: Obrázek výrobku | C83: COD. | D83: CL | E83: D | F83: DN | G83: L (mm) | P83: Kč/ks | Q83: Netto | S83: Netto celkem
A84: =A80+1 -> 77 | B84: HT trubky bez hrdla | C84: VS0500019 | D84: PP01 | E84: 32 | F84: 30 | G84: 5000 | O84: 50 | P84: 254 | Q84: =P84*(100-$Q$1*100)/100 -> 170.18 | S84: =R84*Q84 -> 0.00 Kč
A85: =A84+1 -> 78 | B85: HT trubky bez hrdla | C85: VS0500039 | D85: PP01 | E85: 40 | F85: 40 | G85: 5000 | O85: 50 | P85: 211 | Q85: 141.37 | S85: 0.00 Kč
A86: 79 | B86: HT trubky bez hrdla | C86: VS0500059 | D86: PP01 | E86: 50 | F86: 50 | G86: 5000 | O86: 50 | P86: 263 | Q86: 176.21 | S86: 0.00 Kč
A87: 80 | B87: HT trubky bez hrdla | C87: VS0500079 | D87: PP01 | E87: 75 | F87: 70 | G87: 5000 | O87: 30 | P87: 383 | Q87: 256.61 | S87: 0.00 Kč
A88: 81 | B88: HT trubky bez hrdla | C88: VS050007902 | D88: PP01 | E88: 75 | F88: 70 | G88: 5000 | O88: 105 | P88: 383 | Q88: 256.61 | S88: 0.00 Kč
A89: 82 | B89: HT trubky bez hrdla | C89: VS0599019 | D89: PP01 | E89: 90 | F89: 90 | G89: 5000 | O89: 20 | P89: 560 | Q89: 375.2 | S89: 0.00 Kč
A90: 83 | B90: HT trubky bez hrdla | C90: VS0500099 | D90: PP01 | E90: 110 | F90: 100 | G90: 5000 | O90: 15 | P90: 737 | Q90: 493.79 | S90: 0.00 Kč
A91: 84 | B91: HT trubky bez hrdla | C91: VS050009902 | D91: PP01 | E91: 110 | F91: 100 | G91: 5000 | O91: 100 | P91: 737 | Q91: 493.79 | S91: 0.00 Kč
A92: 85 | B92: HT trubky bez hrdla | C92: VS0500119 | D92: PP01 | E92: 125 | F92: 125 | G92: 5000 | O92: 10 | P92: 1118 | Q92: 749.06 | S92: 0.00 Kč
A93: HTB
A94: HT koleno
A95: Číslo | B95: Obrázek výrobku | C95: COD. | D95: CL | E95: D | F95: DN | G95: α | O95: HxLxP | P95: Kč/ks | Q95: Netto | S95: Netto celkem
A96: =A92+1 -> 86 | B96: HT koleno | C96: VS0504001 | D96: PP02 | E96: 32 | F96: 30 | G96: 15° | L96: 80 | M96: 640 | N96: 3840 | O96: 970x800x1200 | P96: 22 | Q96: =P96*(100-$Q$1*100)/100 -> 14.74 | S96: =R96*Q96 -> 0.00 Kč
A97: =A96+1 -> 87 | B97: HT koleno | C97: VS0504003 | D97: PP02 | E97: 32 | F97: 30 | G97: 30° | L97: 80 | M97: 640 | N97: 3840 | O97: 970x800x1200 | P97: 22 | Q97: =P97*(100-$Q$1*100)/100 -> 14.74 | S97: 0.00 Kč
A98: 88 | B98: HT koleno | C98: VS0504005 | D98: PP02 | E98: 32 | F98: 30 | G98: 45° | L98: 80 | M98: 640 | N98: 2560 | O98: 850x800x1200 | P98: 22 | Q98: =P98*(100-$Q$1*100)/100 -> 14.74 | S98: 0.00 Kč
A99: 89 | B99: HT koleno | C99: VS0504007 | D99: PP02 | E99: 32 | F99: 30 | G99: 67°30' | L99: 60 | M99: 480 | N99: 2880 | O99: 970x800x1200 | P99: 22 | Q99: 14.74 | S99: 0.00 Kč
A100: 90 | B100: HT koleno | C100: VS0504009 | D100: PP02 | E100: 32 | F100: 30 | G100: 80° | L100: 60 | M100: 480 | N100: 2880 | O100: 970x800x1200 | P100: 24 | Q100: 16.08 | S100: 0.00 Kč
A101: 91 | B101: HT koleno | C101: VS0504011 | D101: PP02 | E101: 32 | F101: 30 | G101: 87°30' | L101: 60 | M101: 480 | N101: 2880 | O101: 970x800x1200 | P101: 22 | Q101: 14.74 | S101: 0.00 Kč
A102: 92 | B102: HT koleno | C102: VS0504013 | D102: PP02 | E102: 40 | F102: 40 | G102: 15° | L102: 50 | M102: 400 | N102: 1600 | O102: 850x800x1200 | P102: 17 | Q102: 11.39 | S102: 0.00 Kč
A103: 93 | B103: HT koleno | C103: VS0504015 | D103: PP02 | E103: 40 | F103: 40 | G103: 30° | L103: 50 | M103: 400 | N103: 1600 | O103: 850x800x1200 | P103: 17 | Q103: 11.39 | S103: 0.00 Kč
A104: 94 | B104: HT koleno | C104: VS0504017 | D104: PP02 | E104: 40 | F104: 40 | G104: 45° | L104: 50 | M104: 400 | N104: 1600 | O104: 850x800x1200 | P104: 17 | Q104: 11.39 | S104: 0.00 Kč
A105: 95 | B105: HT koleno | C105: VS0504019 | D105: PP02 | E105: 40 | F105: 40 | G105: 67°30' | L105: 50 | M105: 400 | N105: 1600 | O105: 1010x800x1200 | P105: 18 | Q105: 12.06 | S105: 0.00 Kč
A106: 96 | B106: HT koleno | C106: VS0504021 | D106: PP02 | E106: 40 | F106: 40 | G106: 80° | L106: 50 | M106: 400 | N106: 1600 | O106: 1010x800x1200 | P106: 20 | Q106: 13.4 | S106: 0.00 Kč
A107: 97 | B107: HT koleno | C107: VS0504023 | D107: PP02 | E107: 40 | F107: 40 | G107: 87°30' | L107: 50 | M107: 400 | N107: 1600 | O107: 1010x800x1200 | P107: 18 | Q107: 12.06 | S107: 0.00 Kč
A108: 98 | B108: HT koleno | C108: VS0504025 | D108: PP02 | E108: 50 | F108: 50 | G108: 15° | L108: 30 | M108: 240 | N108: 960 | O108: 850x800x1200 | P108: 19 | Q108: 12.73 | S108: 0.00 Kč
A109: 99 | B109: HT koleno | C109: VS0504027 | D109: PP02 | E109: 50 | F109: 50 | G109: 30° | L109: 30 | M109: 240 | N109: 960 | O109: 850x800x1200 | P109: 19 | Q109: 12.73 | S109: 0.00 Kč
A110: 100 | B110: HT koleno | C110: VS0504029 | D110: PP02 | E110: 50 | F110: 50 | G110: 45° | L110: 30 | M110: 240 | N110: 960 | O110: 850x800x1200 | P110: 19 | Q110: 12.73 | S110: 0.00 Kč
A111: 101 | B111: HT koleno | C111: VS0504031 | D111: PP02 | E111: 50 | F111: 50 | G111: 67°30' | L111: 30 | M111: 240 | N111: 960 | O111: 850x800x1200 | P111: 20 | Q111: 13.4 | S111: 0.00 Kč
A112: 102 | B112: HT koleno | C112: VS0504033 | D112: PP02 | E112: 50 | F112: 50 | G112: 80° | L112: 30 | M112: 240 | N112: 960 | O112: 850x800x1200 | P112: 23 | Q112: 15.41 | S112: 0.00 Kč
A113: 103 | B113: HT koleno | C113: VS0504035 | D113: PP02 | E113: 50 | F113: 50 | G113: 87°30' | L113: 30 | M113: 240 | N113: 960 | O113: 850x800x1200 | P113: 20 | Q113: 13.4 | S113: 0.00 Kč
A114: 104 | B114: HT koleno | C114: VS0504037 | D114: PP02 | E114: 75 | F114: 70 | G114: 15° | L114: 20 | M114: 160 | N114: 640 | O114: 1010x800x1200 | P114: 32 | Q114: 21.44 | S114: 0.00 Kč
A115: 105 | B115: HT koleno | C115: VS0504039 | D115: PP02 | E115: 75 | F115: 70 | G115: 30° | L115: 20 | M115: 160 | N115: 640 | O115: 1010x800x1200 | P115: 32 | Q115: 21.44 | S115: 0.00 Kč
A116: 106 | B116: HT koleno | C116: VS0504041 | D116: PP02 | E116: 75 | F116: 70 | G116: 45° | L116: 20 | M116: 160 | N116: 480 | O116: 1015x800x1200 | P116: 32 | Q116: 21.44 | S116: 0.00 Kč
A117: 107 | B117: HT koleno | C117: VS0504043 | D117: PP02 | E117: 75 | F117: 70 | G117: 67°30' | L117: 20 | M117: 160 | N117: 480 | O117: 1015x800x1200 | P117: 34 | Q117: 22.78 | S117: 0.00 Kč
A118: 108 | B118: HT koleno | C118: VS0504045 | D118: PP02 | E118: 75 | F118: 70 | G118: 80° | L118: 20 | M118: 160 | N118: 480 | O118: 1015x800x1200 | P118: 40 | Q118: 26.8 | S118: 0.00 Kč
A119: 109 | B119: HT koleno | C119: VS0504047 | D119: PP02 | E119: 75 | F119: 70 | G119: 87°30' | L119: 20 | M119: 160 | N119: 480 | O119: 1015x800x1200 | P119: 34 | Q119: 22.78 | S119: 0.00 Kč
A120: 110 | B120: HT koleno | C120: VS0599041 | D120: PP02 | E120: 90 | F120: 90 | G120: 15° | L120: 20 | M120: 160 | N120: 480 | O120: 1015x800x1200 | P120: 41 | Q120: 27.47 | S120: 0.00 Kč
A121: 111 | B121: HT koleno | C121: VS0599043 | D121: PP02 | E121: 90 | F121: 90 | G121: 30° | L121: 20 | M121: 160 | N121: 320 | O121: 1050x800x1200 | P121: 41 | Q121: 27.47 | S121: 0.00 Kč
A122: 112 | B122: HT koleno | C122: VS0599045 | D122: PP02 | E122: 90 | F122: 90 | G122: 45° | L122: 20 | M122: 80 | N122: 240 | O122: 853x800x1200 | P122: 41 | Q122: 27.47 | S122: 0.00 Kč
A123: 113 | B123: HT koleno | C123: VS0599047 | D123: PP02 | E123: 90 | F123: 90 | G123: 67°30' | L123: 20 | M123: 80 | N123: 240 | O123: 853x800x1200 | P123: 42 | Q123: 28.14 | S123: 0.00 Kč
A124: 114 | B124: HT koleno | C124: VS0599051 | D124: PP02 | E124: 90 | F124: 90 | G124: 87°30' | L124: 20 | M124: 80 | N124: 240 | O124: 853x800x1200 | P124: 42 | Q124: 28.14 | S124: 0.00 Kč
A125: 115 | B125: HT koleno | C125: VS0504049 | D125: PP02 | E125: 110 | F125: 100 | G125: 15° | L125: 20 | M125: 80 | N125: 240 | O125: 970x800x1200 | P125: 47 | Q125: 31.49 | S125: 0.00 Kč
A126: 116 | B126: HT koleno | C126: VS0504051 | D126: PP02 | E126: 110 | F126: 100 | G126: 30° | L126: 20 | M126: 80 | N126: 240 | O126: 970x800x1200 | P126: 47 | Q126: 31.49 | S126: 0.00 Kč
A127: 117 | B127: HT koleno | C127: VS0504053 | D127: PP02 | E127: 110 | F127: 100 | G127: 45° | L127: 20 | M127: 80 | N127: 240 | O127: 1039x800x1200 | P127: 47 | Q127: 31.49 | S127: 0.00 Kč
A128: 118 | B128: HT koleno | C128: VS0504055 | D128: PP02 | E128: 110 | F128: 100 | G128: 67°30' | L128: 20 | M128: 80 | N128: 160 | O128: 940x800x1200 | P128: 48 | Q128: 32.16 | S128: 0.00 Kč
A129: 119 | B129: HT koleno | C129: VS0504057 | D129: PP02 | E129: 110 | F129: 100 | G129: 80° | L129: 20 | M129: 80 | N129: 160 | O129: 940x800x1200 | P129: 54 | Q129: 36.18 | S129: 0.00 Kč
A130: 120 | B130: HT koleno | C130: VS0504059 | D130: PP02 | E130: 110 | F130: 100 | G130: 87°30' | L130: 20 | M130: 80 | N130: 160 | O130: 940x800x1200 | P130: 48 | Q130: 32.16 | S130: 0.00 Kč
A131: 121 | B131: HT koleno | C131: VS0504061 | D131: PP02 | E131: 125 | F131: 125 | G131: 15° | L131: 20 | M131: 80 | N131: 160 | O131: 940x800x1200 | P131: 158 | Q131: 105.86 | S131: 0.00 Kč
A132: 122 | B132: HT koleno | C132: VS0504063 | D132: PP02 | E132: 125 | F132: 125 | G132: 30° | L132: 20 | M132: 80 | N132: 160 | O132: 940x800x1200 | P132: 158 | Q132: 105.86 | S132: 0.00 Kč
A133: 123 | B133: HT koleno | C133: VS0504065 | D133: PP02 | E133: 125 | F133: 125 | G133: 45° | L133: 15 | M133: 60 | N133: 120 | O133: 940x800x1200 | P133: 158 | Q133: 105.86 | S133: 0.00 Kč
A134: 124 | B134: HT koleno | C134: VS0504067 | D134: PP02 | E134: 125 | F134: 125 | G134: 67°30' | L134: 15 | M134: 60 | N134: 120 | O134: 940x800x1200 | P134: 166 | Q134: 111.22 | S134: 0.00 Kč
A135: 125 | B135: HT koleno | C135: VS0504069 | D135: PP02 | E135: 125 | F135: 125 | G135: 80° | L135: 15 | M135: 60 | N135: 120 | O135: 940x800x1200 | P135: 170 | Q135: 113.9 | S135: 0.00 Kč
A136: 126 | B136: HT koleno | C136: VS0504071 | D136: PP02 | E136: 125 | F136: 125 | G136: 87°30' | L136: 10 | M136: 40 | N136: 120 | O136: 1039x800x1200 | P136: 166 | Q136: 111.22 | S136: 0.00 Kč
A137: 127 | B137: HT koleno | C137: VS0504073 | D137: PP02 | E137: 160 | F137: 150 | G137: 15° | L137: 10 | M137: 40 | N137: 80 | O137: 940x800x1200 | P137: 232 | Q137: 155.44 | S137: 0.00 Kč
A138: 128 | B138: HT koleno | C138: VS0504075 | D138: PP02 | E138: 160 | F138: 150 | G138: 30° | L138: 10 | M138: 40 | N138: 80 | O138: 940x800x1200 | P138: 232 | Q138: 155.44 | S138: 0.00 Kč
A139: 129 | B139: HT koleno | C139: VS0504077 | D139: PP02 | E139: 160 | F139: 150 | G139: 45° | L139: 10 | M139: 40 | N139: 80 | O139: 940x800x1200 | P139: 244 | Q139: 163.48 | S139: 0.00 Kč
A140: 130 | B140: HT koleno | C140: VS0504083 | D140: PP02 | E140: 160 | F140: 150 | G140: 87°30' | L140: 10 | M140: 40 | N140: 80 | O140: 1300x800x1200 | P140: 244 | Q140: 163.48 | S140: =R140*Q140 -> 0.00 Kč
A141: HTRE
A142: HT čistící kus
A143: Číslo | B143: Obrázek výrobku | C143: COD. | D143: CL | E143: D | F143: DN | O143: HxLxP | P143: Kč/ks | Q143: Netto | S143: Netto celkem
A144: =A140+1 -> 131 | B144: HT čistící kus | C144: VS0516003 | D144: PP02 | E144: 50 | F144: 50 | L144: 20 | M144: 160 | N144: 480 | O144: 1015x800x1200 | P144: 104 | Q144: =P144*(100-$Q$1*100)/100 -> 69.68 | S144: =R144*Q144 -> 0.00 Kč
A145: =A144+1 -> 132 | B145: HT čistící kus | C145: VS0516005 | D145: PP02 | E145: 75 | F145: 70 | L145: 20 | M145: 80 | N145: 240 | O145: 853x800x1200 | P145: 107 | Q145: 71.69 | S145: 0.00 Kč
A146: 133 | B146: HT čistící kus | C146: VS0599151 | D146: PP02 | E146: 90 | F146: 90 | L146: 20 | M146: 80 | N146: 160 | O146: 940x800x1200 | P146: 122 | Q146: 81.74 | S146: 0.00 Kč
A147: 134 | B147: HT čistící kus | C147: VS0516007 | D147: PP02 | E147: 110 | F147: 100 | L147: 15 | M147: 60 | N147: 120 | O147: 940x800x1200 | P147: 132 | Q147: 88.44 | S147: 0.00 Kč
A148: 135 | B148: HT čistící kus | C148: VS0516009 | D148: PP02 | E148: 125 | F148: 125 | L148: 10 | M148: 40 | N148: 80 | O148: 940x800x1200 | P148: 340 | Q148: 227.8 | S148: 0.00 Kč
A149: 136 | B149: HT čistící kus | C149: VS0516011 | D149: PP02 | E149: 160 | F149: 150 | L149: 5 | M149: 20 | N149: 40 | O149: 940x800x1200 | P149: 539 | Q149: 361.13 | S149: 0.00 Kč
A151: HTDA
A152: HT dvojitá odbočka
A153: Číslo | C153: COD. | D153: CL | E153: D1/D2 | F153: DN1/DN2 | G153: α | O153: HxLxP | P153: Kč/ks | Q153: Netto | S153: Netto celkem
A154: =A149+1 -> 137 | B154: HT dvojitá odbočka | C154: VS0506001 | D154: PP02 | E154: 50/50 | F154: 50/50 | G154: 67°30’ | L154: 20 | M154: 160 | N154: 480 | O154: 1015x800x1200 | P154: 186 | Q154: =P154*(100-$Q$1*100)/100 -> 124.62 | S154: =R154*Q154 -> 0.00 Kč
A155: =A154+1 -> 138 | B155: HT dvojitá odbočka | C155: VS0506005 | D155: PP02 | E155: 75/75 | F155: 70/70 | G155: 67°30’ | L155: 10 | M155: 40 | N155: 120 | O155: 853x800x1200 | P155: 220 | Q155: 147.4 | S155: 0.00 Kč
A156: 139 | B156: HT dvojitá odbočka | C156: VS0599085 | D156: PP02 | E156: 90/40 | F156: 90/40 | G156: 45° | L156: 15 | M156: 60 | N156: 180 | O156: 853x800x1200 | P156: 220 | Q156: 147.4 | S156: 0.00 Kč
A157: 140 | B157: HT dvojitá odbočka | C157: VS0599087 | D157: PP02 | E157: 90/50 | F157: 90/50 | G157: 45° | L157: 15 | M157: 60 | N157: 180 | O157: 970x800x1200 | P157: 190 | Q157: 127.3 | S157: 0.00 Kč
A158: 141 | B158: HT dvojitá odbočka | C158: VS0506008 | D158: PP02 | E158: 110/50 | F158: 100/50 | G158: 45° | L158: 10 | M158: 40 | N158: 120 | O158: 853x800x1200 | P158: 190 | Q158: 127.3 | S158: 0.00 Kč
A159: 142 | B159: HT dvojitá odbočka | C159: VS0506009 | D159: PP02 | E159: 110/50 | F159: 100/50 | G159: 67°30’ | L159: 10 | M159: 40 | N159: 120 | O159: 853x800x1200 | P159: 230 | Q159: 154.1 | S159: 0.00 Kč
A160: 143 | B160: HT dvojitá odbočka | C160: VS0506011 | D160: PP02 | E160: 110/50 | F160: 100/50 | G160: 87°30’ | L160: 10 | M160: 40 | N160: 120 | O160: 853x800x1200 | P160: 203 | Q160: 136.01 | S160: 0.00 Kč
A161: 144 | B161: HT dvojitá odbočka | C161: VS0506013 | D161: PP02 | E161: 110/110 | F161: 100/100 | G161: 67°30’ | L161: 5 | M161: 20 | N161: 60 | O161: 970x800x1200 | P161: 203 | Q161: 136.01 | S161: 0.00 Kč
A162: 145 | B162: HT dvojitá odbočka | C162: VS0506015 | D162: PP02 | E162: 110/110 | F162: 100/100 | G162: 87°30’ | L162: 5 | M162: 20 | N162: 60 | O162: 970x800x1200 | P162: 211 | Q162: 141.37 | S162: 0.00 Kč
A164: HTED
A165: HT D1 67°30' rohová dvojodbočka
A166: Číslo | B166: Obrázek výrobku | C166: COD. | D166: CL | E166: D1/D2/D3 | F166: DN1/DN2/DN3 | G166: α | O166: HxLxP | P166: Kč/ks | Q166: Netto | S166: Netto celkem
A167: =A162+1 -> 146 | B167: HT D1 67°30' rohová dvojodbočka | C167: VS0512001 | D167: PP02 | E167: 110/110/110 | F167: 100/100/100 | G167: 67°30’ | L167: 5 | M167: 20 | N167: 60 | O167: 1039x800x1200 | P167: 412 | Q167: =P167*(100-$Q$1*100)/100 -> 276.04 | S167: =R167*Q167 -> 0.00 Kč
A168: =A167+1 -> 147 | B168: HT D1 67°30' rohová dvojodbočka | C168: VS0512003 | D168: PP02 | E168: 110/50/110 | F168: 100/50/100 | G168: 67°30’ | L168: 5 | M168: 20 | N168: 60 | O168: 970x800x1200 | P168: 431 | Q168: 288.77 | S168: 0.00 Kč
A169: 148 | B169: HT D1 67°30' rohová dvojodbočka | C169: VS0512005 | D169: PP02 | E169: 110/110/50 | F169: 100/100/50 | G169: 67°30’ | L169: 5 | M169: 20 | N169: 60 | O169: 970x800x1200 | P169: 431 | Q169: 288.77 | S169: 0.00 Kč
A170: 149 | B170: HT D1 67°30' rohová dvojodbočka | C170: VS0512007 | D170: PP02 | E170: 110/50/50 | F170: 100/50/50 | G170: 67°30’ | L170: 10 | M170: 40 | N170: 120 | O170: 853x800x1200 | P170: 431 | Q170: 288.77 | S170: 0.00 Kč
A172: HT redukce
A173: Číslo | B173: Obrázek výrobku | C173: COD. | D173: CL | E173: D/D1 | F173: DN/DN1 | O173: HxLxP | P173: Kč/ks | Q173: Netto | S173: Netto celkem
A174: =A170+1 -> 150 | B174: HT redukce | C174: VS0700033 | D174: PP02 | E174: 40/50 | F174: 40/50 | L174: 30 | M174: 240 | N174: 1680 | O174: 970x800x1200 | P174: 45 | Q174: =P174*(100-$Q$1*100)/100 -> 30.15 | S174: =R174*Q174 -> 0.00 Kč
A175: =A174+1 -> 151 | B175: HT redukce | C175: VS0700034 | D175: PP02 | E175: 32/40 | F175: 30/40 | L175: 30 | M175: 240 | N175: 1920 | O175: 930x800x1200 | P175: 45 | Q175: 30.15 | S175: 0.00 Kč
A177: HTR
A178: HT redukce – varianta A dlouhá, varianta B krátká
A179: Číslo | B179: Obrázek výrobku | C179: COD. | D179: CL | E179: D/D1 | F179: DN/DN1 | G179: Z1 | H179: L | I179: L1 | J179: L2 | K179: Mod. | O179: HxLxP | P179: Kč/ks | Q179: Netto | S179: Netto celkem
A180: =A175+1 -> 152 | B180: HT redukce – varianta A dlouhá, varianta B krátká | C180: VS0514001 | D180: PP02 | E180: 40/32 | F180: 40/30 | G180: 12 | H180: 98 | I180: 41 | J180: 44 | K180: B | L180: 50 | M180: 400 | N180: 2400 | O180: 970x800x1200 | P180: 29 | Q180: =P180*(100-$Q$1*100)/100 -> 19.43 | S180: =R180*Q180 -> 0.00 Kč
A181: =A180+1 -> 153 | B181: HT redukce – varianta A dlouhá, varianta B krátká | C181: VS0514002 | D181: PP02 | E181: 50/32 | F181: 50/30 | G181: 15 | H181: 98 | I181: 38 | J181: 44 | K181: B | L181: 40 | M181: 320 | N181: 1920 | O181: 970x800x1200 | P181: 36 | Q181: 24.12 | S181: 0.00 Kč
A182: 154 | B182: HT redukce – varianta A dlouhá, varianta B krátká | C182: VS0514003 | D182: PP02 | E182: 50/40 | F182: 50/40 | G182: 13 | H182: 125 | I182: 51 | J182: 58 | K182: B | L182: 50 | M182: 400 | N182: 1600 | O182: 1010x800x1200 | P182: 23 | Q182: 15.41 | S182: 0.00 Kč
A183: 155 | B183: HT redukce – varianta A dlouhá, varianta B krátká | C183: VS0514005 | D183: PP02 | E183: 75/40 | F183: 70/40 | G183: 54 | H183: 75 | I183: 60 | J183: 58 | K183: A | L183: 30 | M183: 240 | N183: 960 | O183: 850x800x1200 | P183: 47 | Q183: 31.49 | S183: 0.00 Kč
A184: 156 | B184: HT redukce – varianta A dlouhá, varianta B krátká | C184: VS0514007 | D184: PP02 | E184: 75/50 | F184: 70/50 | G184: 50 | H184: 75 | I184: 59 | J184: 58 | K184: A | L184: 30 | M184: 240 | N184: 960 | O184: 850x800x1200 | P184: 28 | Q184: 18.76 | S184: 0.00 Kč
A185: 157 | B185: HT redukce – varianta A dlouhá, varianta B krátká | C185: VS0599131 | D185: PP02 | E185: 90/40 | F185: 90/40 | G185: - | H185: 77 | I185: 61 | J185: 46.5 | K185: A | L185: 20 | M185: 160 | N185: 640 | O185: 850x800x1200 | P185: 31 | Q185: 20.77 | S185: 0.00 Kč
A186: 158 | B186: HT redukce – varianta A dlouhá, varianta B krátká | C186: VS0599133 | D186: PP02 | E186: 90/50 | F186: 90/50 | G186: - | H186: 76 | I186: 61 | J186: 45.5 | K186: A | L186: 20 | M186: 160 | N186: 640 | O186: 850x800x1200 | P186: 31 | Q186: 20.77 | S186: 0.00 Kč
A187: 159 | B187: HT redukce – varianta A dlouhá, varianta B krátká | C187: VS0514009 | D187: PP02 | E187: 110/50 | F187: 100/50 | G187: 50 | H187: 82 | I187: 66 | J187: 54 | K187: A | L187: 20 | M187: 160 | N187: 640 | O187: 1010x800x1200 | P187: 36 | Q187: 24.12 | S187: 0.00 Kč
A188: 160 | B188: HT redukce – varianta A dlouhá, varianta B krátká | C188: VS0514011 | D188: PP02 | E188: 110/75 | F188: 100/70 | G188: 55 | H188: 82 | I188: 66 | J188: 56 | K188: A | L188: 20 | M188: 160 | N188: 640 | O188: 1010x800x1200 | P188: 40 | Q188: 26.8 | S188: 0.00 Kč
A189: 161 | B189: HT redukce – varianta A dlouhá, varianta B krátká | C189: VS0514013 | D189: PP02 | E189: 125/75 | F189: 125/70 | G189: 55 | H189: 85 | I189: 70 | J189: 55 | K189: A | L189: 20 | M189: 160 | N189: 480 | O189: 1015x800x1200 | P189: 78 | Q189: 52.26 | S189: 0.00 Kč
A190: 162 | B190: HT redukce – varianta A dlouhá, varianta B krátká | C190: VS0514015 | D190: PP02 | E190: 125/110 | F190: 125/100 | G190: 60 | H190: 86 | I190: 68 | J190: 61 | K190: A | L190: 30 | M190: 120 | N190: 360 | O190: 853x800x1200 | P190: 78 | Q190: 52.26 | S190: 0.00 Kč
A191: 163 | B191: HT redukce – varianta A dlouhá, varianta B krátká | C191: VS0514017 | D191: PP02 | E191: 160/110 | F191: 150/100 | G191: 80 | H191: 173 | I191: 97 | J191: 81 | K191: A | L191: 20 | M191: 80 | N191: 240 | O191: 940x800x1200 | P191: 203 | Q191: 136.01 | S191: 0.00 Kč
A192: 164 | B192: HT redukce – varianta A dlouhá, varianta B krátká | C192: VS0514019 | D192: PP02 | E192: 160/125 | F192: 150/125 | G192: 80 | H192: 160 | I192: 92 | J192: 82 | K192: A | L192: 20 | M192: 80 | N192: 240 | O192: 940x800x1200 | P192: 214 | Q192: 143.38 | S192: 0.00 Kč
A194: HTSW
A195: HT sifonové koleno s pryžovou manžentou
A196: Číslo | B196: Obrázek výrobku | C196: COD. | D196: CL | E196: D/D1 | F196: D2 | G196: DN1/DN2 | H196: Z1 | I196: L | J196: L1 | K196: L2 | O196: HxLxP | P196: Kč/ks | Q196: Netto | S196: Netto celkem
A197: =A192+1 -> 165 | B197: HT sifonové koleno s pryžovou manžentou | C197: VS0518003 | D197: PP02 | E197: 32/46 | F197: 24-32 | G197: 30/40 | H197: 23 | I197: 50 | J197: 51 | K197: 27 | L197: 40 | M197: 320 | N197: 1280 | O197: 850x800x1200 | P197: 37 | Q197: =P197*(100-$Q$1*100)/100 -> 24.79 | S197: =R197*Q197 -> 0.00 Kč
A198: =A197+1 -> 166 | B198: HT sifonové koleno s pryžovou manžentou | C198: VS0518007 | D198: PP02 | E198: 40/46 | F198: 24-32 | G198: 40/40 | H198: 23 | I198: 50 | J198: 51 | K198: 30 | L198: 40 | M198: 320 | N198: 1280 | O198: 850x800x1200 | P198: 37 | Q198: 24.79 | S198: 0.00 Kč
A199: 167 | B199: HT sifonové koleno s pryžovou manžentou | C199: VS0518009 | D199: PP02 | E199: 40/46 | F199: 36-40 | G199: 40/40 | H199: 23 | I199: 50 | J199: 51 | K199: 30 | L199: 40 | M199: 320 | N199: 1280 | O199: 850x800x1200 | P199: 37 | Q199: 24.79 | S199: 0.00 Kč
A200: 168 | B200: HT sifonové koleno s pryžovou manžentou | C200: VS0518013 | D200: PP02 | E200: 40/53,5 | F200: 24-32 | G200: 40/50 | H200: 28 | I200: 52 | J200: 52 | K200: 27 | L200: 20 | M200: 160 | N200: 960 | O200: 970x800x1200 | P200: 37 | Q200: 24.79 | S200: 0.00 Kč
A201: 169 | B201: HT sifonové koleno s pryžovou manžentou | C201: VS0518015 | D201: PP02 | E201: 40/53,5 | F201: 36-40 | G201: 40/50 | H201: 28 | I201: 52 | J201: 52 | K201: 27 | L201: 20 | M201: 160 | N201: 960 | O201: 970x800x1200 | P201: 37 | Q201: 24.79 | S201: 0.00 Kč
A202: 170 | B202: HT sifonové koleno s pryžovou manžentou | C202: VS0518017 | D202: PP02 | E202: 50/53,5 | F202: 24-32 | G202: 50/50 | H202: 28 | I202: 52 | J202: 52 | K202: 28 | L202: 20 | M202: 160 | N202: 960 | O202: 970x800x1200 | P202: 42 | Q202: 28.14 | S202: 0.00 Kč
A203: 171 | B203: HT sifonové koleno s pryžovou manžentou | C203: VS0518019 | D203: PP02 | E203: 50/53,5 | F203: 36-40 | G203: 50/50 | H203: 28 | I203: 52 | J203: 52 | K203: 28 | L203: 20 | M203: 160 | N203: 960 | O203: 970x800x1200 | P203: 42 | Q203: 28.14 | S203: 0.00 Kč
A204: 172 | B204: HT sifonové koleno s pryžovou manžentou | C204: VS0518021 | D204: PP02 | E204: 50/60 | F204: 46-55 | G204: 50/50 | H204: 28 | I204: 52 | J204: 52 | K204: 28 | L204: 20 | M204: 160 | N204: 960 | O204: 970x800x1200 | P204: 53 | Q204: 35.51 | S204: 0.00 Kč
A206: HTSW
... 180 more rows

Sheet Celková objednávka
B1: CELKOVÁ OBJEDNÁVKA
A2: Dodavatel: | C2: Objednavatel:
A3: Genova Bohemia s.r.o. | C3: ='Registrace zákazníka'!D5 -> zde vyplňte
A4: Vídeňská 573 | C4: ='Registrace zákazníka'!D6 -> zde vyplňte
A5: Vestec u Prahy | C5: ='Registrace zákazníka'!D7 -> zde vyplňte
C6: ='Registrace zákazníka'!D8 -> zde vyplňte
A7: DIČ: CZ26188651 | C7: ='Registrace zákazníka'!D9 -> zde vyplňte
A8: Tel: 244 911 283 | C8: ='Registrace zákazníka'!D10 -> zde vyplňte
C9: ='Registrace zákazníka'!D11 -> zde vyplňte
A11: objednací kod | B11: název a popis výrobku | C11: objed. Ks | D11: cena po slevě | E11: celkem objednáno
